[Event "Kezmarok Chess Open 2022"]
[Site "Kezmarok"]
[Date "2022.09.26"]
[Round "4.15"]
[White "Skapikova, Lubica"]
[Black "Horbalova, Ivana"]
[Result "1-0"]
[ECO "B21"]
[WhiteElo "1823"]
[BlackElo "1286"]
[Annotator "NA RC"]
[PlyCount "59"]
[EventDate "2022.09.24"]
[EventType "swiss"]
[EventCountry "SVK"]
[SourceTitle "playchess.com"]
[Source "ChessBase"]
[SourceQuality "1"]
[TimeControl "40/5400+30:1800+30"]

1. e4 {[%emt 0:00:06]} c5 {[%emt 0:00:47]} 2. f4 {[%emt 0:00:05]} e6 {[%emt 0:00:51]} 3. Nf3 {[%emt 0:00:03]} a6 {[%emt 0:02:14]} 4. Nc3 {[%emt 0:02:27]} Nc6 {[%emt 0:03:31]} 5. d3 {[%emt 0:00:06]} Be7 {[%emt 0:02:58]} 6. Be2 {[%emt 0:00:22]} d6 {[%emt 0:04:50]} 7. O-O {[%emt 0:00:08]} Bd7 {[%emt 0:02:38]} 8. h3 {[%emt 0:10:06]} Nd4 {[%emt 0:01:19]} 9. Be3 {[%emt 0:00:53]} Nxe2+ {[%emt 0:00:40]} 10. Qxe2 {[%emt 0:02:14]} h5 {[%emt 0:06:39]} 11. g3 {[%emt 0:10:38]} Nh6 {[%emt 0:01:35]} 12. Ng5 {[%emt 0:03:35]} g6 {[%emt 0:01:31]} 13. Qf2 {[%emt 0:14:54]} f5 {[%emt 0:01:21]} 14. d4 {[%emt 0:10:29]} Qc7 {[%emt 0:02:46]} 15. Nf3 {[%emt 0:04:04]} Nf7 {[%emt 0:01:17]} 16. Rad1 {[%emt 0:14:26]} c4 {[%emt 0:04:56]} 17. d5 {[%emt 0:01:35]} e5 {[%emt 0:03:23]} 18. fxe5 {[%emt 0:06:16]} dxe5 {[%emt 0:01:48]} 19. d6 {[%emt 0:04:20]} Bxd6 {[%emt 0:01:50]} 20. Nd5 {[%emt 0:00:06]} Qc6 {[%emt 0:01:31]} 21. Nf6+ {[%emt 0:00:17]} Ke7 {[%emt 0:00:40]} 22. Nxd7 {[%emt 0:00:40]} Qxd7 {[%emt 0:01:30]} 23. Bc5 {[%emt 0:01:02]} f4 {[%emt 0:02:26]} 24. Bxd6+ {[%emt 0:00:25]} Nxd6 {[%emt 0:00:29]} 25. Nxe5 {[%emt 0:00:32]} Qxh3 {[%emt 0:01:18]} 26. Nxg6+ {[%emt 0:00:30]} Kd7 {[%emt 0:02:54]} 27. Qxf4 {[%emt 0:01:18]} Qe6 {[%emt 0:02:10]} 28. Nxh8 {[%emt 0:00:12]} Rxh8 {[%emt 0:00:28]} 29. e5 {[%emt 0:00:15]} Rg8 {[%emt 0:01:30]} 30. Rxd6+ {[%emt 0:00:11]} 1-0

[Event "Kezmarok Chess Open 2022"]
[Site "Kezmarok"]
[Date "2022.09.27"]
[Round "5.1"]
[White "Hagarova, Zuzana"]
[Black "Berezjuk, Sergej"]
[Result "1/2-1/2"]
[ECO "B30"]
[WhiteElo "2287"]
[BlackElo "2382"]
[Annotator "TA"]
[PlyCount "221"]
[EventDate "2022.09.24"]
[EventType "swiss"]
[EventCountry "SVK"]
[SourceTitle "playchess.com"]
[Source "ChessBase"]
[SourceQuality "1"]
[TimeControl "40/5400+30:1800+30"]

{[%evp 9,221,22,39,23,36,32,28,20,32,26,17,17,16,22,30,22,54,-4,39,15,34,19,33,23,138,91,220,217,227,220,229,198,243,146,147,142,156,141,216,222,214,122,126,126,132,129,162,159,165,162,249,243,252,251,260,206,445,429,417,443,443,438,428,425,371,278,276,257,355,270,350,354,355,353,378,0,348,347,341,332,410,397,475,459,428,371,394,242,420,410,462,432,460,387,349,0,614,586,483,163,163,54,163,163,163,163,163,156,156,131,131,131,131,131,131,77,131,131,131,131,131,131,155,155,155,155,156,156,155,155,155,155,155,155,156,156,156,156,155,155,155,9,9,0,0,0,0,0,0,0,0,0,0,0,0,0,0,0,0,0,0,0,0,0,0,0,0,0,0,0,0,0,0,0,12845,12846,12846,12847,12847,12847,12848,12845,12845,12846,12846,12847,12847,0,12846,0,0,0,0,0,12845,0,0,0,0,0,14,0,12845,77,12837,0,0,0,0,0,0,0,0,0]} 1. e4 {[%emt 0:00:07]} c5 {[%emt 0:00:57]} 2. Nf3 {[%emt 0:00:07]} Nc6 {[%emt 0:00:33]} 3. Nc3 {[%emt 0:00:06]} e5 {[%emt 0:02:32]} 4. Bc4 {[%emt 0:00:18]} d6 {[%emt 0:00:06]} 5. d3 {[%emt 0:00:20]} h6 {[%emt 0:00:05]} 6. h3 {[%emt 0:05:06] B30: Sicilian: 2...Nc6 3 Bb5, lines without ...g6.} g6 {[%emt 0:03:37]} 7. O-O {[%emt 0:04:19]} Bg7 {[%emt 0:00:43]} 8. Nh2 {[%emt 0:01:15] White has an edge.} Nf6 {[%emt 0:08:11]} 9. f4 {[%emt 0:02:46] [#]} exf4 $146 {[%emt 0:00:45]} ({Predecessor:} 9... Nd4 10. Nf3 exf4 11. Bxf4 O-O 12. Nxd4 cxd4 13. Nd5 Nh5 14. Qf3 Kh7 15. g4 Nxf4 16. Nxf4 {1-0 (51) Kurcsics,M (1960)-Bubits,B (2185) Hungary 2017}) 10. Bxf4 {[%emt 0:00:26] Black should prevent Nb5.} O-O {[%emt 0:00:08]} 11. Qd2 {[%emt 0:03:19]} g5 {[%emt 0:17:15]} 12. Be3 {[%emt 0:06:53][%cal Oh3h4]} Be6 {[%emt 0:00:55]} 13. Nf3 {[%emt 0:08:18]} (13. h4 $14) 13... Nd7 {[%emt 0:04:26]} 14. Nd5 {[%emt 0:16:22][%cal Rf3g5]} Nb6 {[%emt 0:09:59]} 15. Nxb6 {[%emt 0:16:07]} (15. Bb3 $5 {[%cal Rf3g5]}) 15... Qxb6 {[%emt 0:05:12]} 16. c3 {[%emt 0:03:40]} Rad8 {[%emt 0:04:23]} (16... Bxc4 $11 {keeps the balance.} 17. dxc4 Rae8) 17. h4 {[%emt 0:04:15]} (17. Bxe6 $142 fxe6 18. h4) 17... d5 {[%emt 0:08:16]} (17... Bxc4 $16 18. hxg5 (18. dxc4 f6 $11) 18... Be6 19. gxh6 Bf6) 18. exd5 $1 $18 {[%emt 0:03:38]} Bxd5 {[%emt 0:00:19]} 19. Qf2 $1 {[%emt 0:05:18]} ({Much less strong is} 19. Bxd5 $6 Rxd5 20. hxg5 hxg5 $16) 19... Bxc4 {[%emt 0:03:03]} 20. dxc4 {[%emt 0:03:26]} Nd4 {[%emt 0:09:00]} 21. hxg5 {[%emt 0:09:06]} Nxf3+ {[%emt 0:01:29]} 22. Qxf3 {[%emt 0:01:10]} hxg5 {[%emt 0:01:19]} 23. Bxg5 {[%emt 0:01:17]} Rd7 {[%emt 0:00:24]} (23... Rde8 $16) 24. Rae1 {[%emt 0:01:31]} Qg6 {[%emt 0:02:50]} 25. Qf5 {[%emt 0:02:16]} (25. Be7 $18) 25... Qxf5 $16 {[%emt 0:02:41]} 26. Rxf5 {[%emt 0:00:05]} f6 {[%emt 0:00:32]} 27. Bf4 {[%emt 0:00:31] White is more active.} Rc8 {[%emt 0:02:12]} 28. Rd5 {[%emt 0:00:50]} Rf7 {[%emt 0:00:15]} 29. Kf2 $36 {[%emt 0:01:04][%mdl 2048] Black is under strong pressure.} Bf8 {[%emt 0:00:37]} (29... b6 $142 30. Kf3 Kh7) 30. Kf3 $18 {[%emt 0:00:15]} Kg7 {[%emt 0:01:32]} 31. Re6 {[%emt 0:00:16]} Be7 {[%emt 0:00:55]} 32. Rd7 {[%emt 0:01:07]} Bd8 {[%emt 0:00:31]} (32... Bf8 {was necessary.} 33. Rd5 Kg6) 33. Red6 {[%emt 0:00:39]} Bb6 {[%emt 0:04:38]} 34. Rxf7+ {[%emt 0:00:35]} Kxf7 {[%emt 0:00:02][%mdl 4096] Endgame KRB-KRB} 35. Rd7+ {[%emt 0:00:07]} Ke6 {[%emt 0:00:00]} 36. Rxb7 {[%emt 0:00:10]} Rd8 {[%emt 0:00:03]} 37. Rb8 {[%emt 0:00:35]} Rd1 {[%emt 0:00:14]} 38. Re8+ {[%emt 0:00:16]} Kf5 {[%emt 0:00:20] And now ...Rf1+ would win.} 39. g4+ {[%emt 0:01:28]} Kg6 {[%emt 0:00:01]} 40. Re2 {[%emt 0:00:15]} Rf1+ {[%emt 0:01:53]} 41. Ke4 {[%emt 0:30:48]} Rg1 {[%emt 0:31:14]} 42. Kf3 {[%emt 0:00:00]} Rf1+ {[%emt 0:00:00]} 43. Rf2 {[%emt 0:00:00]} Ra1 {[%emt 0:00:00]} 44. a3 {[%emt 0:00:00]} f5 {[%emt 0:00:00]} 45. Be3 {[%emt 0:00:00]} Re1 {[%emt 0:00:00]} 46. gxf5+ {[%emt 0:00:00]} Kxf5 {[%emt 0:00:00]} 47. Rd2 {[%emt 0:00:00]} Ke6 {[%emt 0:00:00]} 48. Ke4 {[%emt 0:00:00] Strongly threatening Rg2.} Rh1 $2 {[%emt 0:00:00]} (48... a5 49. a4 Bc7) 49. Rg2 {[%emt 0:00:00]} Kd7 {[%emt 0:00:00]} 50. Rg7+ {[%emt 0:00:00]} Kc6 {[%emt 0:00:00]} 51. Kd3 {[%emt 0:00:00]} Rh3 {[%emt 0:00:00]} 52. Ke4 $2 {[%emt 0:00:00]} (52. Rg5 $18) 52... a5 $2 {[%emt 0:00:00][%mdl 8192]} (52... Rh1 $11 53. b4 cxb4) 53. Rg6+ {[%emt 0:02:35]} Kb7 {[%emt 0:00:00]} 54. Bf2 $2 {[%emt 0:01:01]} (54. Rh6 Rg3 55. b4) 54... a4 {[%emt 0:00:00]} 55. Bg3 {[%emt 0:02:21]} ({Better is} 55. Rf6 $18) 55... Rh1 {[%emt 0:00:00]} (55... Bc7 $14) 56. Rd6 {[%emt 0:01:10]} Rg1 {[%emt 0:00:00]} 57. Bf4 {[%emt 0:00:21]} Rg2 {[%emt 0:00:00]} 58. Bd2 {[%emt 0:00:30]} Bc7 {[%emt 0:00:00]} 59. Rd5 {[%emt 0:00:25]} Kc6 {[%emt 0:00:00]} 60. Kf3 {[%emt 0:00:54] Inhibits Rg4.} Rg3+ {[%emt 0:00:00]} 61. Ke2 $1 {[%emt 0:00:13]} Rg4 {[%emt 0:00:00]} 62. Kd3 $1 {[%emt 0:00:08]} Rg3+ {[%emt 0:00:00]} (62... Bf4 $142) 63. Kc2 $1 $16 {[%emt 0:00:17]} Rg4 {[%emt 0:00:00]} 64. b3 $1 {[%emt 0:00:48]} axb3+ {[%emt 0:00:00]} 65. Kxb3 {[%emt 0:00:03]} Rg8 {[%emt 0:00:00]} 66. Be3 {[%emt 0:00:43]} Bd6 {[%emt 0:00:00]} 67. Rh5 {[%emt 0:00:37]} Rg3 {[%emt 0:00:00]} 68. Bd2 {[%emt 0:00:42]} Rg2 {[%emt 0:00:00]} 69. Rd5 {[%emt 0:00:18]} Re2 {[%emt 0:00:00]} 70. a4 {[%emt 0:00:49]} Re8 {[%emt 0:00:00]} 71. Rh5 {[%emt 0:00:30]} Re2 {[%emt 0:02:40]} 72. Bc1 {[%emt 0:00:07]} Bc7 {[%emt 0:04:15]} 73. Rh6+ {[%emt 0:00:26]} Kb7 {[%emt 0:00:27]} 74. Ba3 {[%emt 0:00:58]} Re5 {[%emt 0:00:08]} 75. a5 {[%emt 0:00:54]} ({White should play} 75. Rh7 $16) 75... Bxa5 $11 {[%emt 0:00:12]} 76. Ka4 {[%emt 0:00:20]} Bxc3 {[%emt 0:00:57]} 77. Kb5 {[%emt 0:00:09]} Bb4 {[%emt 0:03:09]} 78. Bc1 {[%emt 0:00:52]} Re7 {[%emt 0:00:30]} 79. Bf4 {[%emt 0:00:30]} Rf7 {[%emt 0:01:36]} 80. Bh2 {[%emt 0:00:29]} Ka8 {[%emt 0:00:36]} 81. Rh8+ {[%emt 0:00:39]} Ka7 {[%emt 0:00:24]} 82. Bb8+ {[%emt 0:00:33]} Kb7 {[%emt 0:00:05]} 83. Bd6 {[%emt 0:00:24]} Rd7 {[%emt 0:01:23]} 84. Bh2 {[%emt 0:00:29]} Ka7 {[%emt 0:00:33]} 85. Kc6 {[%emt 0:00:27]} Rf7 {[%emt 0:03:09]} 86. Bb8+ {[%emt 0:00:30]} Ka6 {[%emt 0:00:20]} 87. Bc7 {[%emt 0:00:24][%cal Rh8a8]} Rf6+ {[%emt 0:00:06]} 88. Bd6 {[%emt 0:00:11][%cal Rh8a8]} Ka7 {[%emt 0:00:12] Against Ra8+} 89. Rh1 {[%emt 0:01:01] White threatens Ra1+ and mate.} Ka6 {[%emt 0:00:53]} 90. Ra1+ {[%emt 0:00:34]} Ba5 {[%emt 0:00:01]} 91. Kxc5 {[%emt 0:00:26]} Rf7 $2 {[%emt 0:04:18][%mdl 8192] Against Bc7} (91... Rf5+ $11 92. Kc6 Rh5) 92. Kc6 $18 {[%emt 0:00:25]} Rf6 {[%emt 0:00:00]} 93. Kd5 {[%emt 0:00:34]} Rf5+ {[%emt 0:00:31]} 94. Ke6 {[%emt 0:00:32]} Rh5 {[%emt 0:01:01]} 95. Bc7 {[%emt 0:00:35]} Rh6+ {[%emt 0:00:44]} 96. Kd5 {[%emt 0:00:14]} Rh5+ {[%emt 0:00:15]} 97. Kd4 {[%emt 0:00:26]} Rh4+ {[%emt 0:00:07]} 98. Kd5 {[%emt 0:00:32]} Rh5+ {[%emt 0:00:05]} 99. Kc6 $2 {[%emt 0:00:09]} (99. Ke4 $1 $18 Rh4+ 100. Kd3) 99... Rh6+ $11 {[%emt 0:00:09]} 100. Bd6 {[%emt 0:00:09]} Rh4 {[%emt 0:00:45]} 101. c5 {[%emt 0:00:41] Hoping for Bc7.} Rh7 $2 {[%emt 0:02:06][%mdl 8192] [#] Inhibits Bc7.} (101... Rh6 $11) 102. Rb1 $2 {[%emt 0:00:29]} ({Only move:} 102. Bf4 $1 $18 Rh8 103. Bc7 Rh6+ 104. Kd5 Rh5+ 105. Kd6 Rh6+ 106. Kd5 Rh5+ 107. Kd4) 102... Rh8 $1 {[%emt 0:00:46]} 103. Kd7 {[%emt 0:00:58]} Rd8+ {[%emt 0:00:31]} 104. Kc6 {[%emt 0:00:26]} Rh8 {[%emt 0:00:20]} 105. Ra1 $2 {[%emt 0:00:23][%mdl 8192]} (105. Bf4 $11) 105... Rh7 $18 {[%emt 0:00:10] [#]} 106. Rf1 $2 {[%emt 0:00:30]} (106. Bf4 $1 $18 {is the precise move to win.} Rh8 107. Bc7 Rh6+ 108. Kd5 Rh5+ 109. Kd6 Rh6+ 110. Kd5 Rh5+ 111. Kd6 Rh6+ 112. Ke5 Rh5+ 113. Kd4) 106... Bb4 $2 {[%emt 0:01:25][%mdl 8192]} (106... Rh8 $16) 107. Rf4 $2 {[%emt 0:00:29]} (107. Rf2 $18 Ba5 108. Ra2) 107... Ka5 $11 {[%emt 0:00:24] The position is equal.} 108. Bc7+ {[%emt 0:00:56]} Rxc7+ $1 {[%emt 0:00:50]} 109. Kxc7 {[%emt 0:00:19]} Bxc5 {[%emt 0:00:02]} 110. Kc6 {[%emt 0:00:25]} Be3 {[%emt 0:01:27]} 111. Re4 {Weighted Error Value: White=0.35/Black=0.43} 1/2-1/2

[Event "Kezmarok Chess Open 2022"]
[Site "Kezmarok"]
[Date "2022.09.27"]
[Round "5.2"]
[White "Dubessay, Bastien"]
[Black "Jablonicky, Martin"]
[Result "1-0"]
[ECO "A48"]
[WhiteElo "2259"]
[BlackElo "2344"]
[Annotator "TA"]
[PlyCount "109"]
[EventDate "2022.09.24"]
[EventType "swiss"]
[EventCountry "SVK"]
[SourceTitle "playchess.com"]
[Source "ChessBase"]
[SourceQuality "1"]
[TimeControl "40/5400+30:1800+30"]

{[%evp 9,109,17,43,33,33,31,25,22,51,55,50,46,76,82,79,63,74,26,36,60,52,12,12,12,131,129,138,142,150,143,141,142,135,139,136,124,160,168,159,162,171,161,158,160,170,172,189,191,181,175,200,206,254,238,248,267,268,255,230,222,318,230,370,352,556,508,569,560,550,538,652,627,437,0,684,672,665,665,665,665,12836,12836,12837,12834,12837,12837,12837,12838,12838,12831,6841,5800,12840,12840,12841,12841,12841,12842,12842,12843,12844,12844]} 1. d4 {[%emt 0:00:09][%cal Bd2d4,Bd4d5,Bd5d6][%mdl 32]} Nf6 {[%emt 0:00:11]} 2. Nf3 {[%emt 0:00:09]} g6 {[%emt 0:00:10]} 3. c4 {[%emt 0:00:10]} Bg7 {[%emt 0:00:05]} 4. Nc3 {[%emt 0:00:06]} O-O {[%emt 0:00:20]} 5. Bg5 {[%emt 0:00:06]} c5 {[%emt 0:00:16]} 6. d5 {[%emt 0:00:10] E61: King's Indian: Early deviations for White, including Smyslov System.} b5 {[%emt 0:00:45]} 7. cxb5 {[%emt 0:00:35]} a6 {[%emt 0:00:08]} 8. e3 {[%emt 0:00:25] White has an edge.} h6 {[%emt 0:03:44] [#]} 9. Bxf6 $146 {[%emt 0:03:59]} ({Predecessor:} 9. Bf4 Qa5 10. Nd2 axb5 11. Bxb5 Nxd5 12. Nxd5 Qxb5 13. a4 Qxb2 14. Rb1 Qa2 15. Nxe7+ {0-1 (33) Danielian,E (2489)-Lagno,K (2483) Novi Sad 2009}) 9... Bxf6 {[%emt 0:00:05]} 10. d6 {[%emt 0:00:05] Strongly threatening Qd5.} e6 {[%emt 0:02:35] Prevents Qd5.} 11. a4 {[%emt 0:07:18]} Qa5 {[%emt 0:03:47]} 12. Rc1 {[%emt 0:08:23]} Qb4 {[%emt 0:00:20]} 13. Be2 {[%emt 0:18:56]} (13. Qd2 $16) 13... axb5 $11 {[%emt 0:02:42]} 14. axb5 {[%emt 0:00:12]} Ra2 $1 {[%emt 0:01:39]} 15. O-O {[%emt 0:09:09]} Rxb2 {[%emt 0:00:08]} 16. Nb1 {[%emt 0:00:20][%cal Bc3b1,Bb1d2,Bd2c4][%mdl 32] With the idea Nbd2.} Bb7 {[%emt 0:00:47] White stays focused until the end.} (16... c4 $1 $11) 17. Nbd2 $16 {[%emt 0:01:17]} Bd5 {[%emt 0:47:05]} 18. Nc4 {[%emt 0:11:45]} Ra2 {[%emt 0:01:01]} 19. Rb1 {[%emt 0:02:28]} Qc3 {[%emt 0:00:17]} 20. Rb3 {[%emt 0:05:04]} Qc2 {[%emt 0:01:55]} 21. Bd3 {[%emt 0:00:09]} Qxd1 {[%emt 0:00:08]} 22. Rxd1 {[%emt 0:00:01]} Bd8 {[%emt 0:04:05]} 23. Rbb1 {[%emt 0:02:27][%cal Bb3b1,Bb1a1,Ba1a7,Ba7c7][%mdl 32]} Ra4 {[%emt 0:01:15]} 24. Nfd2 {[%emt 0:03:45] White is more active.} f5 {[%emt 0:00:27]} 25. Ra1 {[%emt 0:00:33]} Rb4 {[%emt 0:00:31] [#]} 26. Rdb1 $1 {[%emt 0:00:39]} Bf6 {[%emt 0:00:25]} 27. Ra7 {[%emt 0:03:36]} Bc3 {[%emt 0:02:57]} 28. Rc7 {[%emt 0:02:33]} Rxb1+ {[%emt 0:01:09]} 29. Bxb1 {[%emt 0:00:14]} Bb4 {[%emt 0:00:11]} 30. f3 {[%emt 0:03:06]} e5 {[%emt 0:05:38]} 31. e4 {[%emt 0:00:25]} Be6 {[%emt 0:00:04]} 32. Kf1 {[%emt 0:00:41]} Kg7 {[%emt 0:00:09]} 33. Ke2 {[%emt 0:01:08]} Kf6 {[%emt 0:00:01]} 34. Bd3 {[%emt 0:00:50]} f4 {[%emt 0:00:27]} (34... h5 {is a better defense.} 35. Nb3 fxe4) 35. Nb6 {[%emt 0:07:43]} g5 {[%emt 0:01:50]} (35... c4 $142) 36. Nd5+ $18 {[%emt 0:01:31]} Bxd5 {[%emt 0:00:06]} (36... Kg7 $142 37. Bc4 Ba5) 37. exd5 {[%emt 0:00:01]} Bxd2 {[%emt 0:00:08]} 38. Kxd2 {[%emt 0:00:08][%mdl 4096] Endgame KRB-KRN} e4 {[%emt 0:00:03]} 39. b6 {[%emt 0:05:15][%cal Bb5b6,Bb6b7][%mdl 32]} exd3 {[%emt 0:01:43] [#] KRN-KR} 40. b7 $1 {[%emt 0:00:13] Black must now prevent Rc8.} Kg7 {[%emt 0:05:57][%cal Oc5c4]} 41. Rxc5 {[%emt 0:15:21]} ({White has to play} 41. Kxd3 $18 {Hoping for Rc8.} Rf6 42. Rc8 (42. Rxc5 Rxd6 43. Rc8 Na6 $11) 42... Rxd6 43. Rxb8) 41... Rf6 $2 {[%emt 0:01:44][%mdl 8192]} (41... Na6 $11 42. Rc8 Rf5) 42. Rc8 {[%emt 0:00:11] White is clearly winning.} Rxd6 {[%emt 0:00:04]} 43. Rxb8 {[%emt 0:00:04][%cal Ob8g8] KR-KR} Rb6 {[%emt 0:00:04]} 44. Kxd3 {[%emt 0:02:46] And now Kd4 would win.} d6 {[%emt 0:06:49]} 45. Ke4 {[%emt 0:00:10]} Rb5 {[%emt 0:00:03]} 46. h3 {[%emt 0:02:00][%cal Bh2h3,Bh3h4,Bh4h5][%mdl 32]} Kh7 {[%emt 0:02:18]} 47. h4 {[%emt 0:00:06]} Kg7 {[%emt 0:03:50]} 48. h5 {[%emt 0:00:05]} Kh7 {[%emt 0:00:02]} 49. Rd8 {[%emt 0:02:11]} Rxb7 {[%emt 0:00:07]} 50. Rxd6 {[%emt 0:00:05]} Rb2 {[%emt 0:00:23]} 51. Rg6 {[%emt 0:10:10]} Rxg2 {[%emt 0:02:21]} 52. d6 {[%emt 0:00:06][%cal Bd5d6,Bd6d7][%mdl 32]} Rd2 {[%emt 0:00:30]} 53. Ke5 {[%emt 0:00:46]} Rd3 {[%emt 0:00:06]} 54. Ke6 {[%emt 0:01:59] White wants to mate with d7.} Rxf3 {[%emt 0:03:23]} 55. d7 {[%emt 0:00:06] Weighted Error Value: White=0.17 (very precise) /Black=0.39} 1-0

[Event "Kezmarok Chess Open 2022"]
[Site "Kezmarok"]
[Date "2022.09.27"]
[Round "5.3"]
[White "Manik, Mikulas"]
[Black "Wisniewski, Michal"]
[Result "1-0"]
[ECO "B07"]
[WhiteElo "2362"]
[BlackElo "2152"]
[Annotator "TA"]
[PlyCount "56"]
[EventDate "2022.09.24"]
[EventType "swiss"]
[EventCountry "SVK"]
[SourceTitle "playchess.com"]
[Source "ChessBase"]
[SourceQuality "1"]
[TimeControl "40/5400+30:1800+30"]

{[%evp 9,56,39,48,34,42,46,40,22,77,72,79,79,87,81,92,107,119,115,141,119,130,51,89,90,127,-16,-18,-11,-16,-15,-9,-5,-10,-109,-127,-128,-119,-185,-193,-199,-198,-219,-218,-247,-265,-314,-293,-482,-471]} 1. e4 {[%emt 0:00:02]} d6 {[%emt 0:04:45]} 2. d4 {[%emt 0:00:03]} Nf6 {[%emt 0:00:05]} 3. Nc3 {[%emt 0:00:05]} g6 {[%emt 0:00:06]} 4. Be3 {[%emt 0:00:03]} c6 {[%emt 0:00:05]} 5. h3 {[%emt 0:03:49]} Nbd7 {[%emt 0:03:38]} 6. Nf3 {[%emt 0:02:21] B07: Pirc Defence: Miscellaneous Systems.} e5 {[%emt 0:01:48]} 7. dxe5 {[%emt 0:02:48]} dxe5 {[%emt 0:00:05]} 8. Bc4 {[%emt 0:01:51] Ng5 is the strong threat. White is slightly better.} Bg7 {[%emt 0:00:37]} (8... Bb4 $11) 9. Qd6 $16 {[%emt 0:07:10]} Qe7 {[%emt 0:05:40]} 10. Qxe7+ {[%emt 0:03:55]} Kxe7 {[%emt 0:00:06]} 11. a4 $36 {[%emt 0:00:20][%mdl 2048] Against b5. White is really pushing.} b6 {[%emt 0:11:17]} 12. O-O-O {[%emt 0:01:11]} h6 {[%emt 0:00:53] [#]} 13. Rd3 $146 {[%emt 0:07:07] White is much more active. The black rooks are badly placed.} ({Predecessor:} 13. Rhe1 Ne8 14. Kb1 Nd6 15. Nd2 Rd8 16. b3 Nf8 17. Na2 Nxc4 18. Nxc4 Be6 19. Nb4 Rxd1+ 20. Rxd1 {½-½ (34) Lukac,T (1932)-Lauf,P (2140) Slovakia 2009}) 13... Rd8 {[%emt 0:05:41]} 14. Rhd1 {[%emt 0:04:23]} Bb7 {[%emt 0:00:06]} 15. b4 {[%emt 0:19:23]} ({White should play} 15. Ne1 $16) 15... c5 {[%emt 0:03:42]} 16. b5 {[%emt 0:05:40]} Rac8 {[%emt 0:07:56]} 17. Nd5+ {[%emt 0:01:49]} (17. Nd2 $1 $16) 17... Bxd5 $11 {[%emt 0:05:22]} 18. Bxd5 {[%emt 0:00:03] Threatens to win with Bb7.} ({Wrong is} 18. exd5 $2 e4 19. d6+ Kf8 $19) 18... c4 {[%emt 0:01:09]} 19. Rc3 {[%emt 0:07:21]} Nxd5 {[%emt 0:00:26]} 20. Rxd5 {[%emt 0:00:45]} f5 {[%emt 0:00:46][%cal Bf7f5,Bf5f4][%mdl 32]} 21. Rd1 {[%emt 0:13:12] [#]} (21. exf5 $1 $11 gxf5 22. g3) 21... f4 $1 $17 {[%emt 0:03:19]} ({Don't play} 21... fxe4 $6 22. Nd2 $11) 22. Bd2 {[%emt 0:00:05]} Ke6 {[%emt 0:00:05]} 23. g3 {[%emt 0:02:24] [#]} (23. Be1 $17) 23... g5 $1 $19 {[%emt 0:00:23]} 24. Rg1 {[%emt 0:02:08]} fxg3 {[%emt 0:11:34]} 25. fxg3 {[%emt 0:01:05]} Nf6 {[%emt 0:00:05]} 26. Re3 {[%emt 0:02:38]} Bf8 {[%emt 0:00:06][%cal Bg7f8,Bf8c5,Bc5b4][%mdl 32]} 27. Rge1 {[%emt 0:05:23]} Bc5 {[%emt 0:00:22]} 28. Rc3 $2 {[%emt 0:00:09]} (28. R3e2 Ba3+ 29. Kb1) 28... Bb4 {[%mdl 32768] Weighted Error Value: White=0.42/Black=0.11 (very precise) . Loss on time!?} 1-0